Cogmind - Beta 17 *** ADVENTURER MODE // 2026.06.22 @ 19:56:41 Player: Jefffff Result: Destroyed by P-70 Sage with High-powered Shock Rifle Performance ------------- Evolutions (5) 2500 Regions Visited (8) 1600 Robots Destroyed (117) 585 Value Destroyed (3919) 3919 Prototype IDs (29) 580 Alien Tech Used (0) 0 Bonus (4655) 4655 TOTAL SCORE: 13839 Bonus ------- High Alert Combat Kills 481 Follower Combat Kills 2574 Registered with UFD 300 Met Optimus in HQ 500 Built Enhanced Grunts 300 A7 Reached Mainframe 300 Met R17 at Cetus 500 Friendly Fire -300 Cogmind --------- Core Integrity 0/1000 Matter 300/300 Energy 70/100 System Corruption 31% Temperature Cool (0) Movement Core (1450) Ox28 Location -5/Factory Parts ------- > --- POWER (2) -------- (None) > --- PROPULSION (5) --- Improved Treads > --- UTILITY (6) ------ Huge Storage Unit Hardlight Generator > --- WEAPON (4) ------- (None) > --- INVENTORY (25) --- Carbon-fiber Leg Improved Heat Sink Siege Articulator Triangulator Makeshift Salvage Targeting Computer Advanced Particle Charger Transmission Jammer Cloaking Device Improved Field Recycling Unit (0) Advanced Field Recycling Unit (0) Peak State ------------ > --- POWER ------------ Angular Momentum Engine Quantum Reactor > --- PROPULSION ------- Improved Medium Treads Improved Medium Treads Improved Medium Treads Centrium Heavy Treads > --- UTILITY ---------- Advanced Heat Sink Huge Storage Unit Advanced Trap Scanner Hardened Heavy Armor Plating Tech Extrapolator > --- WEAPON ----------- Beamcaster Advanced Variable Charge Gun Advanced KE Penetrator Advanced KE Penetrator > --- INVENTORY -------- Heavy Deuterium Engine Heavy Deuterium Engine Fission Core Improved Medium Treads Thunder Leg Enhanced Flexi-carbon Leg Enhanced Flexi-carbon Leg Airjet Gravmag System Gravmag System Improved Gravmag System Improved Cooling System Siege Articulator Triangulator Makeshift Salvage Targeting Computer Advanced Particle Charger Cloaking Device Layered Medium Armor Plating Centrium Medium Armor Plating Thermal Shield System Guard Improved System Restoration Module Advanced Field Recycling Unit Advanced Variable Charge Gun Great Maul [Rating: 116] Favorites ----------- Power Angular Momentum Engine Engine Angular Momentum Engine Power Core Light Fission Core Reactor Quantum Reactor Propulsion Aluminum Leg Treads Improved Medium Treads Leg Aluminum Leg Wheel Wheel Hover Unit Gravmag System Flight Unit Cooled VTOL Module Utility High-capacity Storage Unit Device Improved Heat Sink Storage High-capacity Storage Unit Processor Tech Extrapolator Protection Hardened Heavy Armor Plating Weapon Assault Rifle Energy Gun Beamcaster Energy Cannon Phase Cannon Ballistic Gun Assault Rifle Ballistic Cannon Magnetic Acceleration Cannon Special Weapon Improved Remote Datajack Impact Weapon Great Maul Piercing Weapon Makeshift Spear Build | -11 -10 -10 -10 -8 -6 -6 -6 -5 ------- Run | Yrd Mat Min Sub Scr Fac Ext Cet Fac Slots Evolved 10 | . . . . . 8 . . 2 Power 1 | . . . . . 1 . . . Propulsion 3 | . . . . . 1 . . 2 Utility 4 | . . . . . 4 . . . Weapon 2 | . . . . . 2 . . . Parts Attached 146 | 6 3 7 8 14 40 18 12 38 Power 28 | 1 . 2 . 4 8 3 3 7 Engine 19 | 1 . 2 . 3 5 2 2 4 Core 8 | . . . . 1 3 1 1 2 Reactor 1 | . . . . . . . . 1 Propulsion 45 | 2 . 2 3 3 15 3 3 14 Treads 10 | . . . . . 2 3 1 4 Leg 20 | 2 . 2 3 3 3 . 2 5 Wheel 5 | . . . . . 5 . . . Hover 7 | . . . . . 2 . . 5 Flight 3 | . . . . . 3 . . . Utility 28 | 1 2 . 2 1 7 1 2 12 Device 14 | . . . 1 1 5 . 2 5 Storage 5 | 1 2 . 1 . . 1 . . Processor 4 | . . . . . 1 . . 3 Hackware . | . . . . . . . . . Protection 5 | . . . . . 1 . . 4 Artifact . | . . . . . . . . . Weapon 45 | 2 1 3 3 6 10 11 4 5 Energy Gun 20 | . 1 1 2 3 6 5 2 . Energy Cannon 1 | . . . . . . . . 1 Ballistic Gun 10 | 2 . 2 . 1 2 . 2 1 Ballistic Cannon 9 | . . . . 1 2 6 . . Launcher . | . . . . . . . . . Special Weapon 1 | . . . . . . . . 1 Impact Weapon 3 | . . . . 1 . . . 2 Slashing Weapon . | . . . . . . . . . Piercing Weapon 1 | . . . 1 . . . . . Special Melee Weapon . | . . . . . . . . . Unidentified Prototypes 8 | . . . . . 2 . 4 2 Corrupted Parts 1 | . . . . . . . . 1 System Corruption 3 | . . . . . . . . 3 Parts Lost 44 | . . . . . 8 . . 36 Power 8 | . . . . . 1 . . 7 Propulsion 12 | . . . . . 3 . . 9 Utility 13 | . . . . . 1 . . 12 Weapon 11 | . . . . . 3 . . 8 Highest Loss Streak 17 | . . . . . 4 . . 17 To Critical Strikes 4 | . . . . . . . . 4 Average Backups 18 | . 4 9 15 18 19 23 24 20 Power 1 | . 1 1 3 2 . 1 1 1 Propulsion 4 | . . . 1 2 8 10 10 4 Utility 8 | . . 3 4 8 8 9 11 12 Weapon 3 | . 2 4 5 4 1 1 2 1 Tool/Special . | . . . . . . . . . Unused Backups 58 | . . 2 4 20 13 6 3 10 Power 9 | . . . 3 4 1 1 . . Propulsion 13 | . . . . . 7 3 2 1 Utility 28 | . . 1 . 11 5 1 1 9 Weapon 7 | . . 1 1 4 . 1 . . Tool/Special 1 | . . . . 1 . . . . Average Slot Usage (%) 95 | . 98 100 100 100 90 93 86 86 Engine 10 | . 14 14 14 13 8 6 7 5 Core 2 | . . . . . 3 5 5 1 Treads 4 | . . . . . 2 14 12 11 Leg 18 | . 28 28 28 28 10 4 1 5 Device 12 | . . . 9 14 18 13 13 12 Storage 12 | . 26 28 18 14 6 6 6 5 Processor 2 | . . . . . 5 6 6 5 Protection 1 | . . . . . 1 6 6 5 Energy Gun 11 | . 10 7 11 13 12 6 10 8 Ballistic Gun 10 | . 17 20 14 11 7 1 5 7 Ballistic Cannon 4 | . . . . 2 1 16 10 . Peak Build Rating 116 | 6 8 9 19 39 79 83 104 116 Average Rating 46 | 3 7 8 14 25 72 80 95 96 On Entrance 38 | . 6 8 9 19 39 78 83 104 Avg Prop Armor Cover (%) 5 | . . . . . 5 3 1 6 Naked Turns . | . . . . . . . . . Heaviest Build 163 | 14 20 21 54 65 106 163 162 160 Greatest Support 170 | 20 20 20 30 50 65 90 110 170 Greatest Overweight (x) 33 | 4 . 1 2 1 8 2 1 33 Average Overweight (x) 1 | . . . 1 1 2 1 1 . Largest Inventory Capacity 25 | 8 10 10 20 20 20 25 25 25 Average Capacity 19 | 7 8 10 19 20 20 23 25 25 Most Carried 25 | 2 10 10 20 20 20 25 25 25 Average Carried 18 | . 4 9 16 19 19 23 24 20 Final Capacity 25 | 8 10 10 20 20 20 25 25 25 Final Carried 25 | 1 10 10 20 20 20 25 25 10 Scrap Suit Usage (%) 8 | . . . . . 60 . . . Parts Cannibalized 18 | . . . . . 18 . . . Class Distribution -------------------- 41% | Mutant 17% | Scavenger-Mutant 13% | Scavenger-Skirmisher 12% | Scavenger-Tank 8% | Tank 5% | Commander-Tank Dominant Class ---------------- Mutant | -10/Materials Mutant | -10/Mines Scavenger-Mutant | -10/Subcaves Mutant | -8/Scraptown Scavenger-Skirmisher | -6/Factory Tank | -6/Extension Commander-Tank | -6/Cetus Scavenger-Tank | -5/Factory Resources | -11 -10 -10 -10 -8 -6 -6 -6 -5 ----------- Run | Yrd Mat Min Sub Scr Fac Ext Cet Fac Matter Collected 3688 | 192 152 122 137 168 1122 624 290 881 Remotely . | . . . . . . . . . Salvage Created 6075 | . 171 147 194 . 3373 310 61 1819 Parts 239 | . 11 11 12 . 125 10 2 68 Haulers Intercepted 4 | . . . . . 1 1 . 2 Recyclers Shooed 10 | . . . . . 9 . . 1 Parts Field Recycled . | . . . . . . . . . Retrieved Matter . | . . . . . . . . . Parts Self-Destructed 2 | . . . 2 . . . . . Prevented . | . . . . . . . . . Parts Restored . | . . . . . . . . . Kills | -11 -10 -10 -10 -8 -6 -6 -6 -5 ------- Run | Yrd Mat Min Sub Scr Fac Ext Cet Fac Combat Hostiles Destroyed 73 | . 5 3 4 . 33 4 . 24 Melee 2 | . . . . . . . . 2 Guns 56 | . 5 3 4 . 31 . . 13 Cannons 7 | . . . . . 1 3 . 3 Classes Destroyed 14 | . 4 2 1 . 5 . . 2 Worker 10 | . 1 . . . 3 1 . 5 Builder 10 | . . . . . 3 1 . 6 Tunneler 1 | . . . . . . . . 1 Hauler 4 | . . . . . 1 1 . 2 Recycler 13 | . . 1 . . 10 . . 2 Watcher 5 | . 1 . . . 3 1 . . Swarmer 15 | . 3 2 . . 3 . . 7 Grunt 37 | . 2 . . . 20 3 . 12 Brawler 1 | . . . . . 1 . . . Protector 1 | . . . . . . . . 1 Sentry 6 | . . 1 . . 3 1 . 1 Hunter 3 | . . . . . 2 . . 1 Programmer 6 | . . . . . 4 . . 2 Subdweller 4 | . . . 4 . . . . . Thug 1 | . . . . . . . 1 . Best Kill Streak 11 | . 3 2 2 . 7 2 . 11 Combat Bots Only 6 | . 3 2 2 . 6 2 . 4 Max Kills in Single Turn 4 | . 1 1 1 . 2 2 1 4 Gunslinging 1 | . . . . . 1 . . 1 Exploded . | . . . . . . . . . Melee 1 | . . . . . . . . 1 Uniques/NPCs Destroyed . | . . . . . . . . . Combat | -11 -10 -10 -10 -8 -6 -6 -6 -5 -------- Run | Yrd Mat Min Sub Scr Fac Ext Cet Fac Hostile Shots Fired 916 | . 33 21 21 6 256 104 20 455 Missed 247 | . 9 4 3 4 84 41 2 100 Hits 669 | . 24 17 18 2 172 63 18 355 Melee 26 | . . . . . . . . 26 Projectile 643 | . 24 17 18 2 172 63 18 329 Critical Strikes 42 | . . . 1 . 5 1 4 31 Part Disruptions 1 | . . . . . . . . 1 Damage Taken 10284 | . 239 160 298 53 2586 669 367 5912 Core 1996 | . 37 33 139 . 676 76 20 1015 Absorbed by Shields 219 | . . . . . . 59 84 76 Ignored by Resistances 2922 | . 72 48 83 14 610 174 121 1800 Regen/Repaired (Parts) 137 | . . . . . 137 . . . Core Remaining (%) 41 | 100 . . . 16 . . 9 . Volleys Fired 264 | . 18 15 16 5 102 23 8 77 Largest 4 | . 2 2 2 2 4 4 4 4 Hottest 294 | . 70 70 95 100 294 232 234 245 Shots Fired 780 | . 36 30 32 7 372 90 32 181 Gun 669 | . 36 30 32 4 367 29 14 157 Cannon 111 | . . . . 3 5 61 18 24 Launcher . | . . . . . . . . . Special . | . . . . . . . . . Kinetic 345 | . 18 21 16 3 130 65 21 71 Thermal 430 | . 18 9 11 4 242 25 11 110 Explosive . | . . . . . . . . . Electromagnetic 5 | . . . 5 . . . . . Robot Hit Streak 25 | . 5 11 22 25 23 17 13 15 Robot Miss Streak 4 | . 4 3 1 3 4 4 2 4 Penetration Max 2 | . . . . . 1 2 1 1 Secondary Targets 15 | . . 3 . . 9 . . 3 Max Gunslinging Chain 1 | . . 1 . . 1 . . 1 Shots Hit Robots 576 | . 24 23 27 2 264 65 26 145 Core Hits 243 | . 10 11 10 1 115 15 16 65 Critical Kills 10 | . . . . . 1 1 . 8 Critical Parts Destroyed 20 | . . . . . . 6 3 11 Critical Strikes 57 | . 2 1 . . 14 13 5 22 Burn 23 | . 2 1 . . 13 3 1 3 Destroy 28 | . . . . . 1 10 4 13 Smash 6 | . . . . . . . . 6 Melee Attacks 33 | . . . 11 4 . . . 18 Impact 22 | . . . . 4 . . . 18 Slashing . | . . . . . . . . . Piercing 11 | . . . 11 . . . . . Sneak Attacks . | . . . . . . . . . Combat Hostiles . | . . . . . . . . . Follow-up Attacks 1 | . . . . . . . . 1 Damage Inflicted 14582 | . 303 259 418 35 5978 1679 834 5076 Guns 11072 | . 303 259 327 16 5747 540 316 3564 Cannons 2524 | . . . . 19 91 1139 518 757 Explosions 184 | . . . . . 140 . . 44 Melee 790 | . . . 91 . . . . 699 Ramming 12 | . . . . . . . . 12 Kinetic 5947 | . 179 159 109 19 1924 1237 615 1705 Thermal 7737 | . 124 100 130 16 4054 442 219 2652 Explosive . | . . . . . . . . . Electromagnetic 96 | . . . 88 . . . . 8 Impact 699 | . . . . . . . . 699 Slashing . | . . . . . . . . . Piercing 91 | . . . 91 . . . . . Highest Corruption 31 | . 1 1 1 . . . . 31 Average Corruption 1 | . 1 1 1 . . . . 7 Corruption Purged 7 | . . . . . . . . 7 Corruption Blocked . | . . . . . . . . . Effects 34 | . 2 3 11 . . . . 18 Message Errors 5 | . . 1 1 . . . . 3 Matter Fused 10 | . . 1 3 . . . . 6 Heat Flow Errors 2 | . . . 2 . . . . . Energy Discharges 2 | . 1 . . . . . . 1 Data Loss (minor) 7 | . 1 1 3 . . . . 2 Data Loss (major) 2 | . . . . . . . . 2 Misfires 1 | . . . . . . . . 1 Alerts 3 | . . . 2 . . . . 1 Misdirections 1 | . . . . . . . . 1 Weapon Failures 1 | . . . . . . . . 1 Overload Shots . | . . . . . . . . . Overflow Damage 236 | . . . . . 49 . 17 170 Projectiles 17 | . . . . . . . 17 . Explosions 49 | . . . . . 49 . . . Melee 170 | . . . . . . . . 170 Knockbacks 13 | . . . . 1 . 4 2 6 Impact 6 | . . . . . . . . 6 Kinetic 7 | . . . . 1 . 4 2 . Secondary . | . . . . . . . . . Self-Inflicted Damage 3 | . . . . . . . . 3 Shots . | . . . . . . . . . Rammed 2 | . . . . . . . . 2 Targets Rammed 4 | . . . . . . . . 4 Kicked 2 | . . . . . . . . 2 Crushed . | . . . . . . . . . Highest Temperature 800 | . 182 50 220 24 657 345 346 800 Average Temperature 186 | . 71 18 67 9 206 122 120 261 Received Heat Transfer 2941 | . 150 57 78 36 901 159 35 1525 Effects 91 | . . . . . 34 2 1 54 Shutdowns 30 | . . . . . 12 . . 18 Energy Bleed 14 | . . . . . 7 . . 7 Interference 15 | . . . . . . 2 . 13 Matter Decay 8 | . . . . . 3 . . 5 Short Circuit 5 | . . . . . 1 . . 4 Damage (minor) 7 | . . . . . 4 . 1 2 Damage (major) 6 | . . . . . 4 . . 2 Damage (core) 6 | . . . . . 3 . . 3 Siege Activations . | . . . . . . . . . Martial Activations . | . . . . . . . . . Shielding Activations . | . . . . . . . . . Robots Disrupted 1 | . . . . . . . . 1 Combat Hostiles 1 | . . . . . . . . 1 Robots Corrupted 5 | . . . . . . . . 5 Combat Hostiles 5 | . . . . . . . . 5 Parts Fried 7 | . . . . . . . . 7 Impact Corruptions 6 | . . . . . . . . 6 Robots Melted 3 | . . . . . 1 1 . 1 Combat Hostiles 3 | . . . . . 1 1 . 1 Parts Melted 20 | . 1 . 1 . 16 . . 2 Heat Transferred 14297 | . 518 370 259 37 8930 1133 444 2606 Parts Sabotaged . | . . . . . . . . . Parts Stolen . | . . . . . . . . . Parts Stripped . | . . . . . . . . . Power Chain Reactions 1 | . . . . . . . . 1 Alert | -11 -10 -10 -10 -8 -6 -6 -6 -5 ------- Run | Yrd Mat Min Sub Scr Fac Ext Cet Fac Maximum Alert Level 3 | . . . . . 1 . 1 3 Low Security (%) 76 | 100 100 100 . . 63 100 73 26 Level 1 14 | . . . . . 36 . 26 5 Level 2 . | . . . . . . . . 6 Level 3 8 | . . . . . . . . 60 Level 4 . | . . . . . . . . . Level 5 . | . . . . . . . . . High Security . | . . . . . . . . . Max Security . | . . . . . . . . . Peak Influence 1071 | . 95 126 . . 317 181 342 1071 Initial 107 | . . . . . . . . 107 Average 165 | . 32 16 . . 167 33 88 669 Influence Increases 4450 | . 132 197 23 . 1074 749 554 1721 Destroy 0b10 Robot/C 2540 | . 100 140 20 . 660 440 320 860 Destroy 0b10 Robot/NC 240 | . 10 5 . . 100 25 10 90 Destroy Leader 438 | . 22 20 . . 168 64 20 144 Allied During Kill 580 | . . 23 3 . . 126 158 270 Successful Hack 55 | . . . . . . 40 15 . Disable Machine 171 | . . 9 . . 63 18 . 81 Destroy Structure 261 | . . . . . 53 21 31 156 Partial Spotted 15 | . . . . . . . . 15 Lose Combat Pursuer 150 | . . . . . 30 15 . 105 Influence Decreases 3662 | . 130 199 23 . 1074 749 332 1155 Entered New Map 117 | . . 2 . . . . . 115 Time Decay 2708 | . 130 197 23 . 994 512 292 560 Lost Part 440 | . . . . . 80 . . 360 Lost Ally 268 | . . . . . . 108 40 120 Purge Threat 129 | . . . . . . 129 . . Squads Dispatched 26 | . . . . . 7 2 . 17 Investigation 3 | . . . . . . 1 . 2 Extermination 6 | . . . . . 3 . . 3 Reinforcement 11 | . . . . . 4 1 . 6 Assault 3 | . . . . . . . . 3 Garrison 3 | . . . . . . . . 3 Intercept . | . . . . . . . . . Searches Triggered . | . . . . . . . . . Construction Impeded 6 | . . . . . 2 1 . 3 Haulers Reinforced 3 | . . . . . 1 . . 2 Active Scanning Responses . | . . . . . . . . . Cargo Convoy Interrupts . | . . . . . . . . . Stealth | -11 -10 -10 -10 -8 -6 -6 -6 -5 --------- Run | Yrd Mat Min Sub Scr Fac Ext Cet Fac Distress Signals 6 | . . . . . 1 2 2 1 Communications Jammed . | . . . . . . . . . Distress Signals . | . . . . . . . . . Times Spotted 159 | . 6 7 7 5 39 18 18 59 Peak Tracking Total 8 | . 3 3 2 3 5 3 6 8 Tactical Retreats 9 | . . . . . 2 1 . 6 Traps | -11 -10 -10 -10 -8 -6 -6 -6 -5 ------- Run | Yrd Mat Min Sub Scr Fac Ext Cet Fac Traps Triggered 2 | . 2 . . . . . . . Indirectly . | . . . . . . . . . Trap Hack Attempts . | . . . . . . . . . Triggered . | . . . . . . . . . Disarmed . | . . . . . . . . . Reprogrammed . | . . . . . . . . . Reused . | . . . . . . . . . Traps Extracted . | . . . . . . . . . Installed . | . . . . . . . . . Triggered . | . . . . . . . . . Machines | -11 -10 -10 -10 -8 -6 -6 -6 -5 ---------- Run | Yrd Mat Min Sub Scr Fac Ext Cet Fac Machines Disabled 23 | . . 1 . 4 7 2 . 9 Max in Single Turn 7 | . . . . 1 7 . . 4 Machines Repaired . | . . . . . . . . . Machines Dismantled . | . . . . . . . . . Machines Sabotaged . | . . . . . . . . . Overloaded Fab Kills . | . . . . . . . . . Hacking | -11 -10 -10 -10 -8 -6 -6 -6 -5 --------- Run | Yrd Mat Min Sub Scr Fac Ext Cet Fac Machines Accessed 32 | . 1 . 1 6 3 15 3 3 Terminals 21 | . 1 . . . 1 14 3 2 Fabricators . | . . . . . . . . . Repair Stations 1 | . . . . . . . . 1 Recycling Units 2 | . . . . . 1 1 . . Scanalyzers 1 | . . . . . 1 . . . Garrison Access . | . . . . . . . . . Total Hacks 117 | . 2 . 3 36 5 58 7 6 Successful 88 | . . . 3 36 3 43 3 . Failed 28 | . 2 . . . 2 14 4 6 Catastrophic 4 | . . . . . 1 2 1 . Database Lockouts 1 | . . . . . . 1 . . Manual 21 | . 2 . . . 2 13 2 2 Terminals 68 | . 2 . . . 2 53 7 4 Fabricators . | . . . . . . . . . Repair Stations 2 | . . . . . . . . 2 Recycling Units 6 | . . . . . 1 5 . . Scanalyzers 2 | . . . . . 2 . . . Garrison Access . | . . . . . . . . . Terminal Hacks 76 | . . . 3 36 . 34 3 . Record 48 | . . . 3 29 . 14 2 . Part Schematic 1 | . . . . . . 1 . . Robot Schematic 1 | . . . . . . 1 . . Robot Analysis 6 | . . . . 6 . . . . Prototype ID Bank 3 | . . . . . . 3 . . Open Door 7 | . . . . . . 6 1 . Branch Access Points 2 | . . . . . . 2 . . Terminal Index 1 | . . . . . . 1 . . Alert Level 1 | . . . . . . 1 . . Unreport Threat 2 | . . . . . . 2 . . Maintenance Status 1 | . . . . . . 1 . . Hauler Manifests 1 | . . . . . . 1 . . Registered Components 1 | . . . . . . 1 . . Proto ID Catalog 1 | . . . . 1 . . . . Fabricator Hacks . | . . . . . . . . . Repair Station Hacks . | . . . . . . . . . Recycling Unit Hacks 3 | . . . . . 1 2 . . Report Inventory 1 | . . . . . . 1 . . Retrieve Components 2 | . . . . . 1 1 . . Scanalyzer 2 | . . . . . 2 . . . Insert Component 1 | . . . . . 1 . . . Analyze 1 | . . . . . 1 . . . Garrison Access Hacks . | . . . . . . . . . Unauthorized Hacks 7 | . . . . . . 7 . . Terminals 7 | . . . . . . 7 . . Botnet 7 | . . . . . . 7 . . Fabricators . | . . . . . . . . . Repair Stations . | . . . . . . . . . Recycling Units . | . . . . . . . . . Scanalyzers . | . . . . . . . . . Garrison Access . | . . . . . . . . . Data Cores Recovered . | . . . . . . . . . Used . | . . . . . . . . . Hacking Detections 19 | . 1 . . . 2 10 3 3 Full Trace Events 3 | . . . . . . 1 . 2 Feedback Events . | . . . . . . . . . Feedback Blocked . | . . . . . . . . . Robot Schematics Acquired 1 | . . . . . . 1 . . Robots Built . | . . . . . . . . . Authchips . | . . . . . . . . . Time . | . . . . . . . . . Total Robot Build Rating . | . . . . . . . . . Part Schematics Acquired 26 | . . . . . 9 13 4 . Parts Built . | . . . . . . . . . Authchips . | . . . . . . . . . Time . | . . . . . . . . . Total Part Build Rating . | . . . . . . . . . Part Studies Acquired . | . . . . . . . . . Parts Repaired . | . . . . . . . . . Time . | . . . . . . . . . Parts Recycled . | . . . . . . . . . Recycled Matter . | . . . . . . . . . Retrieved Matter . | . . . . . . . . . Retrieved Components 3 | . . . . . 2 1 . . Parts Scanalyzed 1 | . . . . . 1 . . . Part Schematics Acquired 1 | . . . . . 1 . . . Parts Damaged . | . . . . . . . . . Bothacking | -11 -10 -10 -10 -8 -6 -6 -6 -5 ------------ Run | Yrd Mat Min Sub Scr Fac Ext Cet Fac Used RIF Installer . | . . . . . . . . . Robots Hacked . | . . . . . . . . . Non-combat . | . . . . . . . . . Combat . | . . . . . . . . . Robot Hacks Applied . | . . . . . . . . . Relay Couplers Released . | . . . . . . . . . Fabnet Peak Effective % . | . . . . . . . . . Robots Rewired 11 | . . . . . . 10 . 1 Allies Hacked 1 | . . . . . . 1 . . Hacks Repelled . | . . . . . . . . . Allies | -11 -10 -10 -10 -8 -6 -6 -6 -5 -------- Run | Yrd Mat Min Sub Scr Fac Ext Cet Fac Total Allies 30 | . . 5 . . . 19 5 1 Largest Group 10 | . . 5 5 . . 10 10 7 Highest-Rated Group 729 | . . 84 84 . . 405 729 516 Highest-Rated Ally 151 | . . 31 31 . . 151 151 151 Initial UFD Resources 26 | . . . . . 23 23 23 26 Total Orders . | . . . . . . . . . Ally Attacks 320 | . . 11 15 . . 121 106 67 Total Damage 8356 | . . 168 249 . . 2859 2861 2219 Kills 71 | . . 4 3 . . 21 21 22 Allies Corrupted . | . . . . . . . . . Allies Melted 7 | . . . . 5 . 2 . . Intel | -11 -10 -10 -10 -8 -6 -6 -6 -5 ------- Run | Yrd Mat Min Sub Scr Fac Ext Cet Fac Active Infowar (turns) 5712 | . . . . . 2075 1873 1025 739 Traps 5712 | . . . . . 2075 1873 1025 739 Triangulation 6 | . . . . . 6 . . . Robot Analysis Total 6 | . . . . 6 . . . . Derelict Logs Recovered 2 | . . 1 1 . . . . . Drone Launches . | . . . . . . . . . Drone Recoveries . | . . . . . . . . . Exploration | -11 -10 -10 -10 -8 -6 -6 -6 -5 ------------- Run | Yrd Mat Min Sub Scr Fac Ext Cet Fac Turns Passed 14585 | 63 389 1227 1825 4979 2077 1873 1025 1127 Spaces Moved 6250 | 32 261 731 668 2317 872 611 369 389 Core 13 | 12 . . . . . . . 1 Treads 1013 | . . . . . . 387 369 257 Legs 4715 | 20 261 731 668 2317 433 224 . 61 Wheels 439 | . . . . . 439 . . . Hover 70 | . . . . . . . . 70 Flight . | . . . . . . . . . Fastest Speed 50 | 50 120 120 190 195 125 235 240 120 Average Speed 194 | 139 120 126 246 199 177 238 240 189 Slowest Speed 1700 | 250 120 190 260 200 235 240 240 1700 Overloaded Moves . | . . . . . . . . . Propulsion Burnouts . | . . . . . . . . . Robots Hopped . | . . . . . . . . . Potential Cave-ins . | . . . . . . . . . Cave-ins Triggered 1 | . . . . . . 1 . . Exploration Rate (%) 52 | 3 48 99 45 92 17 74 88 10 Regions Visited 8 Branch Regions 5 Pre-discovered Areas 2 | . . . 1 1 . . . . Known Exits Taken 2 | . . . . 1 . 1 . . Unknown Exits Taken 6 | 1 1 1 1 . 1 . 1 . Scrap Searched 10 | . . 1 3 6 . . . . Spaces Dug 2 | . . . 2 . . . . . Terrain Destroyed 113 | . . . 2 . 47 13 3 48 Melee 2 | . . . 2 . . . . . Projectile 32 | . . . . . 4 13 3 12 AOE 79 | . . . . . 43 . . 36 Terrain Rammed . | . . . . . . . . . Walls Destroyed . | . . . . . . . . . Machines Disabled . | . . . . . . . . . Actions | -11 -10 -10 -10 -8 -6 -6 -6 -5 --------- Run | Yrd Mat Min Sub Scr Fac Ext Cet Fac Total 8107 | 48 300 1015 805 2674 1190 984 494 597 Wait 1020 | 8 8 249 79 271 83 227 85 10 Move 6242 | 31 260 730 667 2316 871 610 368 389 Hop . | . . . . . . . . . Pick Up 145 | 3 10 4 15 27 39 15 5 27 Fast Attach 20 | 4 1 . . . 7 . 1 7 Attach 50 | 2 . . . . 18 . . 30 Detach 4 | . . . . . 3 . . 1 Swap 111 | . 2 8 9 16 28 20 14 14 Drop 147 | . 1 9 8 35 39 23 13 19 Fire 264 | . 18 15 16 5 102 23 8 77 Melee 32 | . . . 11 4 . . . 17 Ram 2 | . . . . . . . . 2 Kick 2 | . . . . . . . . 2 Crush . | . . . . . . . . . Escape Stasis . | . . . . . . . . . Rewire 68 | . . . . . . 66 . 2 Trap . | . . . . . . . . . Miscellaneous . | . . . . . . . . . Route ------- -11/Scrapyard -10/Materials (discovered 2 exits: [*Mat] / [*Min]) -10/Mines (discovered 3 exits: [*Mat x2] / *Sub) -10/Subcaves (discovered 3 exits: [*Mat] / Rec / *Scr) -8/Scraptown (discovered 2 exits: *Fac x2) -6/Factory -6/Extension (discovered 2 exits: *Fac / *Cet) -6/Cetus (discovered 2 exits: *Fac / [*Arc]) -5/Factory History --------- Turn | Location | Event 40 | -11/Scrapyard | Discovered new exit (range 15) 64 | -11/Scrapyard | Entered Materials 312 | -10/Materials | Build established: Mutant 410 | -10/Materials | Discovered new exit (range 11) 410 | -10/Materials | Discovered new exit (range 13) 453 | -10/Materials | Entered Mines 755 | -10/Mines | Assisted by bots powering up and referring to "LRC-V3" 811 | -10/Mines | Discovered new exit (range 6) 919 | -10/Mines | Learned Materials security intel 1475 | -10/Mines | Discovered new exit (range 5) 1500 | -10/Mines | Joined a pair of Derelicts in attacking an 0b10 outpost 1628 | -10/Mines | Discovered new exit (range 9) 1680 | -10/Mines | Entered Subcaves 1680 | -10/Subcaves | Accompanied by 5 allies 1681 | -10/Subcaves | Approached by a straggling Scientist 1685 | -10/Subcaves | Led the pair of lost Derelicts to an unsafe place 1846 | -10/Subcaves | Shifting Twisted Machinery released Mak. Spear 2231 | -10/Subcaves | Core integrity fell below 50% 2282 | -10/Subcaves | Lost 4 allies 2412 | -10/Subcaves | Visited Clippyterm 2419 | -10/Subcaves | Identified exit to Recycling 2560 | -10/Subcaves | Build established: Scavenger-Mutant 2731 | -10/Subcaves | Learned Materials terminal intel 3276 | -10/Subcaves | Learned location of Zion (-7) 3276 | -10/Subcaves | Met a Zionite searching for "candidates" 3311 | -10/Subcaves | Discovered new exit (range 12) 3326 | -10/Subcaves | Core integrity fell below 20% 3491 | -10/Subcaves | Scientist uncovered a shortcut to Scraptown 3505 | -10/Subcaves | Entered Scraptown 3505 | -8/Scraptown | System corruption cleaned by C-Scrubber 3853 | -8/Scraptown | Visited Spacefarers 3953 | -8/Scraptown | Visited Red Mages 4073 | -8/Scraptown | Visited CPS Storage 4237 | -8/Scraptown | Discovered new exit (range 11) 4786 | -8/Scraptown | Build established: Mutant 4946 | -8/Scraptown | Visited SPCMW 5038 | -8/Scraptown | Visited TADAMA 5096 | -8/Scraptown | Visited Comm Corps 5786 | -8/Scraptown | Visited UFD Registry 5824 | -8/Scraptown | Registered with UFD as "Quantumspawn" 5900 | -8/Scraptown | Visited Cartography Club 6076 | -8/Scraptown | Visited Junk Repository 6289 | -8/Scraptown | Delivered Scrap Shield to a Scientist 6506 | -8/Scraptown | Visited Junk Repository 6612 | -8/Scraptown | Visited Science Guys 6806 | -8/Scraptown | Visited Infowarlord's Domain 6861 | -8/Scraptown | Visited Scrapoid Pod Storage 6903 | -8/Scraptown | Visited Analyses Database 6969 | -8/Scraptown | Visited Scrap Suit Storage 7335 | -8/Scraptown | Visited Curators Association 7485 | -8/Scraptown | Found Scrap Suit 7757 | -8/Scraptown | Met Optimus 7757 | -8/Scraptown | Accepted into 0bPrime 8157 | -8/Scraptown | Civil war broke out across Scraptown 8209 | -8/Scraptown | Found Siege Articulator 8224 | -8/Scraptown | Found Siege Cannon Replica 8252 | -8/Scraptown | Identified exit to Factory 8286 | -8/Scraptown | Lost 10 allies 8484 | -8/Scraptown | Entered Factory 8484 | -6/Factory | Evolved 8 slots: Power x1, Propulsion x1, Utility x4, Weapon x2 8573 | -6/Factory | Tech Extrapolator generated special schematic: Deep Structural Scanner 8801 | -6/Factory | Build established: Scavenger-Skirmisher 9207 | -6/Factory | Tech Extrapolator generated special schematic: Machine Rigger 9245 | -6/Factory | Core integrity fell below 50% 9555 | -6/Factory | Lost 4 parts (1p1n2w) 10445 | -6/Factory | Discovered new exit (range 16) 10513 | -6/Factory | Build established: Scavenger-Tank 10561 | -6/Factory | Entered Extension 10827 | -6/Extension | Rescued a captive Derelict 10854 | -6/Extension | Core integrity fell below 20% 11168 | -6/Extension | Rescued a captive Derelict 11170 | -6/Extension | Rescued a captive Derelict 11309 | -6/Extension | Identified exit to Cetus 11369 | -6/Extension | Central database locked down 11399 | -6/Extension | Build established: Commander-Tank 11406 | -6/Extension | Rescued A7 11437 | -6/Extension | Spotted B-75 Beast 11443 | -6/Extension | Allies destroyed B-75 Beast 11458 | -6/Extension | Spotted B-75 Beast 11464 | -6/Extension | Crushed by falling debris 11484 | -6/Extension | Lost 10 allies 11487 | -6/Extension | Allies destroyed B-75 Beast 11564 | -6/Extension | Tech Extrapolator generated special schematic: Energy Deflector 11721 | -6/Extension | Build established: Tank 11736 | -6/Extension | Rescued a captive Derelict 11738 | -6/Extension | Rescued a captive Derelict 11859 | -6/Extension | Rescued a captive Derelict 12061 | -6/Extension | Rescued a captive Derelict 12117 | -6/Extension | Rescued a captive Derelict 12118 | -6/Extension | Rescued a captive Derelict 12233 | -6/Extension | Discovered new exit (range 10) 12434 | -6/Extension | Entered Cetus 12434 | -6/Cetus | Accompanied by 8 allies (A7) 12439 | -6/Cetus | Acquired a Cetus Manufacturing Module code from A7 12473 | -6/Cetus | Spotted Cetus Guard 12474 | -6/Cetus | Spotted Cetus Guard 12479 | -6/Cetus | Spotted Cetus Guard 12479 | -6/Cetus | Spotted Cetus Guard 12481 | -6/Cetus | Allies destroyed Cetus Guard 12483 | -6/Cetus | Allies destroyed Cetus Guard 12494 | -6/Cetus | Allies destroyed Cetus Guard 12506 | -6/Cetus | Allies destroyed Cetus Guard 12539 | -6/Cetus | Lost 3 allies 12656 | -6/Cetus | Started Cetus Manufacturing Module 12681 | -6/Cetus | Manufactured an Enhanced Grunt 12706 | -6/Cetus | Manufactured an Enhanced Grunt 12731 | -6/Cetus | Manufactured an Enhanced Grunt 12756 | -6/Cetus | Manufactured an Enhanced Grunt 12781 | -6/Cetus | Manufactured an Enhanced Grunt 12935 | -6/Cetus | Escorted A7 to Cetus Mainframe 13028 | -6/Cetus | Build established: Commander-Tank 13110 | -6/Cetus | Discovered new exit (range 16) 13148 | -6/Cetus | Spotted Cetus Guard 13148 | -6/Cetus | Spotted Cetus Guard 13153 | -6/Cetus | Spotted Cetus Guard 13155 | -6/Cetus | Spotted Cetus Guard 13160 | -6/Cetus | Allies destroyed Cetus Guard 13174 | -6/Cetus | Allies destroyed Cetus Guard 13179 | -6/Cetus | Allies destroyed Cetus Guard 13184 | -6/Cetus | Security sweep announced 13196 | -6/Cetus | Discovered new exit (range 15) 13229 | -6/Cetus | Met Revision 17 13234 | -6/Cetus | Lost 3 allies 13459 | -6/Cetus | Entered Factory 13459 | -5/Factory | Accompanied by 7 allies (A7) 13459 | -5/Factory | Evolved 2 slots: Propulsion x2 13464 | -5/Factory | Received a hacking code to weaken MAIN.C 13482 | -5/Factory | Build established: Scavenger-Tank 14059 | -5/Factory | First assault squad dispatched 14164 | -5/Factory | Garrison activated, responded to threat 14254 | -5/Factory | Lost 5 parts (1p2n2w) 14306 | -5/Factory | Core integrity fell below 50% 14333 | -5/Factory | Lost 6 parts (2p3u1w) 14422 | -5/Factory | Core integrity fell below 20% 14462 | -5/Factory | Lost 6 parts (1n2u3w) 14531 | -5/Factory | System corruption reached 10% 14573 | -5/Factory | System corruption reached 30% 14586 | -5/Factory | Destroyed by P-70 Sage with High-powered Shock Rifle Last Messages --------------- 14572_ System corrupted by crushing effect (+3). 14572_ Lgt. Treads destroyed. 14573_ Centrium Medium Armor Plating destroyed. 14573_ Acquired Carbon-fiber Leg. 14574_ Penetrated by Slug. 14574_ Acquired 3 matter. 14576_ R-10 Processor collects Imp. Shield Generator. 14577_ Imp. Medium Armor Plating destroyed. 14577_ Penetrated by Slug. 14577_ U-05 Engineer destroyed. 14579_ Imp. Target Analyzer destroyed. 14580_ K-01 Serf destroyed. 14580_ Penetrated by Slug. 14580_ Lgt. Angular Momentum Engine destroyed. 14581_ R-10 Processor collects Lgt. Ion Engine. 14582_ Knocked back. 14583_ System corrupted: IFF burst signal emitted. 14584_ R-10 Processor collects Wheel. Map ----- +----------------------------------------------------+ | ???????????????????? ""??????????????????????????? | | ???????????????????? ""??????????????????????????? | | ???????????????????? "??????????????????????????? | | ???????????????????? ["??????????????????????????? | | ???????????????????? %%??????????????????????????? | | ????????????????????#"#??????????????????????????? | | ????????????????????#%#??????????????????????????? | | ??????????????#######=#??????????????????????????? | | ??????????????# #%#??????????????????????????? | | ??????????????# """#[#??????????????????????????? | | ??????????????# """#=#??????????????????????????? | | #????????????# R"#%#??????????????????????????? | | #????????????# !"""#!#########??????????????????? | | #????????????# =|!%+%*/ #??????????????????? | | #????????????# """!#!## #??????????????????? | | #??????####### """!#%## #??????????????????? | | ########"""""# """*%=!# #??????????????????? | | # ! # ![!#%## #??????????????????? | | # # !=# ## = #??????????????????? | | # # %=# ##gR p #??????????????????? | | # ####### ## ! #??????????????????? | | " " #??#[## %! #??????????????????? | | %# [ #???#%## R| #??????????????????? | | / % #???#%## #??????????????????? | | # #??##!##*p % #??????????????????? | | # #####"%%]#%@b #????????+###??????? | | #% /!=%! [==###h########## #??????? | | #!" ##=###!!%#%# ^ ^^ #??????? | | # "#%##"#%####% ^ #??????? | | #+####### """# ###=#??#!!! ^""" """ ?????????? | | " #?#!#??#!! """ """??????????? | | ########""""### #?#%##?# !! """ """ #??????? | | #??# #######?# ##?# % % #??????? | | #??# """"# ### #### #??????? | | #??# ] """"# # =! #??????? | | #??# """"# # =!% #??????? | | #??# """"#"" ! +%%=% ?????? | | #### """"#"T [=# =% ??????? | | # ????#" *=# %"""" """% %""" %"%% "??????? | | # ! ????# ## """" ""%% %%"" """"????????? | | "" # ????######## """"%"""" """" ""??????????? | | "" #####???????????# " ????????????? | | "" #???????????????# ???????????? | | "" #???????????????# ???????????? | | "" ????????????????# ????????????? | | "" #???????????????# ????????????? | | #??????????????? #########?######???????????? | | #??????????????? #??????????????????????????? | | #??????????????? #??????????????????????????? | | #??????????????? +??????????????????????????? | +----------------------------------------------------+ Best States ------------- Heat Dissipation 86 Energy Generation 38 Energy Capacity 550 Matter Stores 300 Matter Capacity 300 Sight Range 16 Terrain Scan Density 10 Corruption Containment 8 Armor Coverage 600 Resistance: KI 20 Resistance: TH 40 Resistance: EX 20 Resistance: EM 20 Resistance: I 20 Resistance: S 20 Resistance: P 20 Evasion (%) 55 Target Analysis 6 Recoil Reduction 5 Offensive Hacking 10 Item Schematics ----------------- Deep Structural Scanner | -6/Factory | Extrapolated Mak. System Restoration Module | -6/Factory | Extrapolated Mak. Coolant Network | -6/Factory | Extrapolated Beamcaster | -6/Factory | Extrapolated Hvy. Beamcaster | -6/Factory | Extrapolated Mak. Terrain Scanner | -6/Factory | Extrapolated Machine Rigger | -6/Factory | Extrapolated Imp. System Restoration Module | -6/Factory | Scanalyzed Mak. Trap Scanner | -6/Factory | Extrapolated Mak. Medium Armor Plating | -6/Extension | Extrapolated Mak. Ablative Armor | -6/Extension | Extrapolated Mak. Light Armor Plating | -6/Extension | Extrapolated Hvy. Battle Rifle | -6/Extension | Extrapolated Imp. Force Field | -6/Extension | Hacked Mak. Hacking Suite | -6/Extension | Extrapolated Mak. Thermal Plating | -6/Extension | Extrapolated Energy Deflector | -6/Extension | Extrapolated Mak. System Shield | -6/Extension | Extrapolated Spk. Treads | -6/Extension | Extrapolated Spk. Medium Treads | -6/Extension | Extrapolated 0b10 Decoder Chip [Generic] | -6/Extension | Extrapolated 0b10 Decoder Chip [Scout] | -6/Extension | Extrapolated 0b10 Decoder Chip [Skirmisher] | -6/Cetus | Extrapolated Mak. Shrapnel Gun | -6/Cetus | Extrapolated Mak. Core Shielding | -6/Cetus | Extrapolated Tactical Coordination Suite | -6/Cetus | Extrapolated Robot Schematics ------------------ O-24 Administrator | -6/Extension | Hacked Fabricated ------------ Nothing Repaired ---------- Nothing Studied --------- None Alien Tech Used ----------------- None Achievements -------------- Plot Armor Scientist At Large Challenges ------------ None Game ------ Seed DynamicHackingBattery Manual? 0 Play Time 01:33:45 Cumulative 278.9 hours Start 2026.06.22 @ 18:15:11 End 2026.06.22 @ 19:56:41 Sessions 1 Manual Loads 0 Difficulty Adventurer Special Mode None Game No. 327 Rogue 0 Adventurer 327 Explorer 0 Win Type - Total 0 Types 0/0/0/0/0/0/0/0/0/0 Lore% 74 Gallery% 57 Achievement% 38 Wizard Run 0 Options --------- Layout 2 ASCII 0 Keyboard 0 Movement Mouse Keybinds 0 Fullscreen 2 Font 48/Smallcaps Map View 50x44 Zoom Use 0% Tactical HUD 1 Map Filters NONE Filters NONE Steam 1 RUN: 8a15ebee-874a-4c78-81e0-876f8b98c85e